bitfinex-derivatives/quotes_ETHF0:USTF0_20250104
["timestamp","ask_amount","ask_price","bid_price","bid_amount"]
[1736012526602,1.00572254,3623.0,3622.6,4.21352254]
[1736012526900,0.875,3622.9,3622.8,0.27607]
[1736012528203,1.15106,3622.9,3622.8,0.27607]
[1736012530913,0.875,3622.9,3622.8,0.27607]
[1736012531503,1.15106,3622.9,3622.8,0.27607]
[1736012533005,0.875,3622.9,3622.8,0.27607]
[1736012533410,3.03721381,3622.9,3622.8,0.27607]
[1736012534709,0.875,3622.9,3622.8,0.27607]
[1736012535910,3.03721381,3622.9,3622.8,0.27607]
[1736012537710,2.16221381,3622.9,3622.8,1.28179254]
[1736012538109,2.61753487,3623.0,3622.9,0.27606]
[1736012538411,1.07813487,3623.0,3622.9,0.27606]
[1736012538709,7.48082907,3623.9,3623.4,0.27602]
[1736012538710,1.07813487,3623.5,3623.4,0.27602]
[1736012540112,1.07813487,3623.5,3623.4,1.28174254]
[1736012540314,1.00572254,3623.7,3623.4,12.31314152]
[1736012540514,1.00572254,3623.7,3623.6,0.27601]
[1736012540906,1.00572254,3623.7,3623.4,11.30741898]
[1736012541108,1.28173254,3623.5,3623.4,11.30741898]
[1736012542014,1.28174254,3623.5,3623.4,0.27602]
[1736012542213,0.27601,3623.6,3623.0,6.50904494]
[1736012542516,0.27601,3623.6,3623.5,0.27601]
[1736012542814,9.61186082,3623.7,3623.0,6.50904494]
[1736012542815,0.27601,3623.5,3623.3,0.27602]
[1736012543412,5.28824488,3623.7,3623.1,11.41478605]
[1736012543607,0.27601,3623.6,3623.4,0.27601]
[1736012544212,1.36201,3623.6,3623.4,0.27601]
[1736012544711,1.086,3623.6,3623.0,2.08044488]
[1736012545018,4.32361594,3623.7,3623.6,0.27601]
[1736012545616,0.438,3623.8,3623.7,0.276]
[1736012546111,4.32361594,3624.0,3623.9,0.27598]
[1736012546717,4.32361594,3624.3,3624.2,0.27596]
[1736012548119,0.27595,3624.4,3623.8,5.02905058]
[1736012548309,0.27596,3624.3,3624.2,0.27596]
[1736012549921,0.27596,3624.3,3623.8,4.33908058]
[1736012549922,4.59955594,3624.5,3624.3,0.27595]
[1736012550921,0.27594,3624.4,3624.3,0.27595]
[1736012551421,8.18159082,3624.6,3623.8,4.33908058]
[1736012551719,7.90566082,3624.6,3623.8,4.33908058]
[1736012552023,0.27594,3624.5,3624.3,0.27595]
[1736012552709,0.27594,3624.5,3624.4,0.27594]
[1736012553021,0.69154,3624.5,3624.4,0.27594]
[1736012558539,1.11904,3624.5,3624.4,0.27594]
[1736012559938,0.8431,3624.5,3624.4,0.27594]
[1736012561137,0.4275,3624.5,3624.4,0.27594]
[1736012561331,4.76881594,3624.8,3624.7,0.27592]
[1736012562235,0.4124,3624.9,3624.8,0.27591]
[1736012562437,4.32361594,3625.1,3625.0,0.2759]
[1736012563153,0.4452,3625.2,3624.5,5.97809488]
[1736012563336,0.4452,3625.2,3624.5,5.28824488]
[1736012563741,0.4452,3625.2,3624.5,5.97808488]
[1736012563939,0.27589,3625.1,3625.0,0.27589]
[1736012564139,0.2759,3625.0,3624.9,0.2759]
[1736012564542,2.52564488,3625.2,3624.5,3.2078]
[1736012564737,0.27593,3624.6,3624.5,3.48373]
[1736012564938,2.08044488,3624.9,3624.5,3.48373]
[1736012564939,0.27592,3624.7,3624.6,0.27593]
[1736012565143,1.14982,3624.8,3624.6,0.27593]
[1736012565344,0.27592,3624.7,3624.6,0.27593]
[1736012565545,0.70152,3624.7,3624.6,0.27593]
[1736012566549,0.8739,3624.8,3624.5,5.28824488]
[1736012566846,0.8739,3624.8,3624.7,0.27592]
[1736012567542,0.4297,3624.8,3624.7,0.27592]
[1736012567741,2.22847,3625.4,3625.3,0.27588]
[1736012568849,1.14247,3625.4,3625.3,0.27588]
[1736012569249,0.8666,3625.4,3625.3,0.27588]
[1736012569647,1.14247,3625.4,3625.3,0.27588]
[1736012570751,0.8666,3625.4,3625.3,0.27588]
[1736012574551,3.2078,3625.6,3625.5,0.27586]
[1736012575055,0.4127,3625.8,3625.5,2.08044488]
[1736012575350,0.4127,3625.8,3625.7,0.27585]
[1736012576651,0.8557,3626.1,3626.0,0.27582]
[1736012580552,1.13151,3626.1,3626.0,0.27582]
[1736012580747,0.8557,3626.1,3626.0,0.27582]
[1736012583761,0.4477,3626.5,3625.8,2.08044488]
[1736012584056,0.4477,3626.5,3626.4,0.27579]
[1736012585855,0.4449,3626.7,3626.6,0.27578]
[1736012586054,0.27573,3627.3,3627.2,0.27573]
[1736012586055,0.862,3627.3,3627.2,0.27573]
[1736012587254,0.862,3627.3,3627.2,2.35617488]
[1736012589749,0.4476,3627.6,3627.2,2.08044488]
[1736012589959,0.4193,3627.5,3627.4,0.27572]
[1736012592559,0.27574,3627.2,3627.0,0.27574]
[1736012593458,0.27574,3627.2,3626.7,0.27577]
[1736012593662,0.27574,3627.2,3627.0,0.27574]
[1736012593961,3.2078,3627.4,3627.0,0.27575]
[1736012594162,0.27574,3627.2,3627.0,0.27575]
[1736012595160,0.27573,3627.3,3627.1,0.27574]
[1736012595358,3.48352,3627.4,3627.2,0.27573]
[1736012595561,0.27572,3627.3,3627.1,0.27574]
[1736012595952,0.27573,3627.2,3627.0,0.27574]
[1736012597261,0.27574,3627.1,3626.9,0.27575]
[1736012597559,0.4321,3627.0,3626.9,0.27575]
[1736012597761,0.8715,3627.0,3626.9,0.27575]
[1736012598160,0.8715,3627.0,3626.6,3.2078]
[1736012598360,0.27577,3626.8,3626.6,3.48357]
[1736012598563,0.27577,3626.7,3626.6,3.2078]
[1736012599464,0.27577,3626.7,3626.5,0.27578]
[1736012600564,0.27579,3626.5,3626.4,0.27579]
[1736012600865,2.51404488,3626.9,3626.0,2.08044488]
[1736012601159,0.8663,3626.4,3625.7,2.08044488]
[1736012601363,0.7023,3626.3,3626.1,0.27581]
[1736012601765,0.4265,3626.3,3626.2,0.27581]
[1736012618158,0.7023,3626.3,3626.2,0.27581]
[1736012618362,0.7023,3626.3,3625.7,2.08044488]
[1736012618363,0.4265,3626.3,3625.7,2.08044488]
[1736012618572,0.27581,3626.2,3626.1,0.27581]
[1736012618869,0.4265,3626.3,3625.9,0.27583]
[1736012619067,0.27582,3626.1,3626.0,0.27582]
[1736012619369,0.27582,3626.1,3625.5,7.54688058]
[1736012619370,0.27581,3626.2,3626.1,0.27581]
[1736012620367,0.7023,3626.3,3626.2,0.27581]
[1736012624271,0.4265,3626.3,3626.2,0.27581]
[1736012627673,0.4265,3626.3,3625.9,2.08044488]
[1736012627867,0.7023,3626.3,3626.2,0.27581]
[1736012629074,0.4265,3626.3,3626.2,0.27581]
[1736012629482,0.7023,3626.3,3626.2,0.27581]
[1736012632279,0.4265,3626.3,3626.2,0.27581]
[1736012634280,0.7023,3626.3,3626.2,0.27581]
[1736012634484,0.7023,3626.3,3625.8,4.33908058]
[1736012634485,0.4265,3626.3,3625.8,4.33908058]
[1736012634787,0.7023,3626.3,3626.2,0.27581]
[1736012635479,0.4265,3626.3,3626.2,0.27581]
[1736012636489,0.7023,3626.3,3626.2,0.27581]
[1736012637983,0.4265,3626.3,3626.2,0.27581]
[1736012638787,3.65488364,3626.3,3626.2,0.27581]
[1736012641788,0.4265,3626.3,3626.2,0.27581]
[1736012641986,0.4265,3626.3,3626.2,2.35625488]
[1736012642183,3.22838364,3626.4,3626.3,0.2758]
[1736012643492,3.22838364,3626.6,3626.5,0.27578]
[1736012643692,3.22838364,3626.6,3626.5,5.56402488]
[1736012644794,3.22838364,3626.9,3626.5,10.18267951]
[1736012645092,3.22838364,3626.9,3626.8,0.27576]
[1736012646186,0.4104,3627.0,3626.9,0.27575]
[1736012646388,0.27575,3626.9,3626.8,4.89443463]
[1736012647794,0.27576,3626.8,3626.7,0.27576]
[1736012648089,3.6182,3627.0,3626.5,9.70028984]
[1736012648293,0.27576,3626.9,3626.8,0.27576]
[1736012650190,0.27576,3626.9,3626.8,1.27969905]
[1736012651197,0.27576,3626.9,3626.8,0.27576]
[1736012652399,0.27576,3626.9,3626.8,4.60262741]
[1736012653394,3.6182,3627.0,3626.8,4.60262741]
[1736012653599,3.89395,3627.0,3626.9,0.27575]
[1736012659906,0.68615,3627.0,3626.9,0.27575]
[1736012663005,0.4104,3627.0,3626.9,0.27575]
[1736012663206,0.8159,3627.0,3626.9,0.27575]
[1736012665002,1.09165,3627.0,3626.9,0.27575]
[1736012665407,0.8159,3627.0,3626.9,0.27575]
[1736012665916,1.09165,3627.0,3626.9,0.27575]
[1736012666118,0.8159,3627.0,3626.9,0.27575]
[1736012666318,1.09165,3627.0,3626.9,0.27575]
[1736012666718,0.8159,3627.0,3626.9,0.27575]
[1736012669425,0.8159,3627.0,3626.9,4.60261741]
[1736012670025,1.09165,3627.0,3626.9,4.60261741]
[1736012670328,0.8159,3627.0,3626.9,4.60261741]
[1736012670728,1.09165,3627.0,3626.9,0.27575]
[1736012671023,0.8159,3627.0,3626.9,0.27575]
[1736012674823,0.8159,3627.0,3626.9,4.60261741]
[1736012676226,2.09558905,3627.0,3626.9,4.60261741]
[1736012676422,2.09558905,3627.0,3626.9,0.27575]
[1736012677124,1.81983905,3627.0,3626.6,7.49642889]
[1736012677326,0.27576,3626.9,3626.8,0.27576]
[1736012678123,0.27576,3626.9,3626.8,4.60285763]
[1736012679519,0.27576,3626.9,3626.8,4.32709763]
[1736012681720,0.27576,3626.9,3626.8,0.41789763]
[1736012682120,0.27578,3626.6,3626.5,0.41789763]
[1736012682317,5.57251905,3626.6,3626.5,0.41789763]
[1736012683119,5.97901905,3626.6,3626.5,0.41789763]
[1736012683717,5.97901905,3626.6,3626.2,6.76828984]
[1736012683718,9.2896934,3626.6,3626.0,1.44603905]
[1736012683921,1.00393905,3626.3,3626.0,1.44603905]
[1736012684121,1.27973905,3626.3,3626.0,1.44603905]
[1736012684322,1.27973905,3626.3,3626.1,0.27581]
[1736012684830,1.27973905,3626.3,3626.2,0.27581]
[1736012686228,2.13083905,3626.3,3626.2,0.27581]
[1736012692933,2.13083905,3626.3,3626.0,1.44603905]
[1736012693238,0.27581,3626.2,3626.1,0.27581]
[1736012694328,3.52713895,3626.2,3626.1,0.27581]
[1736012696826,3.25132895,3626.2,3626.1,0.27581]
[1736012697031,3.52713895,3626.2,3626.1,0.27581]
[1736012698135,3.25132895,3626.2,3626.1,0.27581]
[1736012698741,3.25132895,3626.2,3626.1,0.72421]
[1736012699441,2.16649673,3626.4,3626.1,5.11061874]
[1736012699637,2.16649673,3626.4,3626.3,1.27973905]
[1736012701239,5.37429673,3626.4,3626.0,6.93458984]
[1736012701440,1.27974905,3626.1,3626.0,6.93458984]
[1736012701639,1.27974905,3626.1,3626.0,6.49248984]
[1736012703341,0.27584,3625.8,3625.7,0.70954]
[1736012703945,0.70294,3625.8,3625.7,0.70954]
[1736012704445,0.4271,3625.8,3625.7,0.70954]
[1736012705145,0.4271,3625.8,3625.7,1.71347905]
[1736012705844,2.59375638,3625.8,3625.7,1.71347905]
[1736012707244,0.4271,3625.8,3625.7,1.71347905]
[1736012709051,0.8334,3625.8,3625.7,1.71347905]
[1736012711041,0.8334,3625.8,3625.4,0.2260327]
[1736012711244,1.00393905,3625.5,3625.3,3.6435]
[1736012711448,0.70997,3625.4,3625.3,0.27587]
[1736012712744,0.4341,3625.4,3625.3,0.27587]
[1736012714744,0.4341,3625.4,3625.3,1.27980905]
[1736012714946,2.16517098,3625.5,3625.4,0.27587]
[1736012716047,1.00393905,3625.6,3625.5,0.27586]
[1736012716351,1.27978905,3625.6,3625.5,0.27586]
[1736012717952,0.27585,3625.6,3625.5,0.27586]
[1736012719344,3.16911003,3625.7,3625.3,1.00393905]
[1736012719547,3.44496003,3625.7,3625.6,0.27585]
[1736012720450,2.16517098,3625.7,3625.6,0.27585]
[1736012720848,2.16517098,3625.7,3625.6,0.69385]
[1736012721343,1.54530098,3625.7,3625.6,4.90558905]
[1736012721547,2.16496832,3626.1,3625.6,9.62973905]
[1736012721759,2.16496832,3626.1,3626.0,4.48755905]
[1736012722256,2.16496832,3626.1,3626.0,5.70863914]
[1736012723255,1.2891,3626.6,3626.0,10.16700396]
[1736012723450,0.8776,3626.6,3626.5,0.27578]
[1736012723858,0.4357,3626.6,3626.5,0.27578]
[1736012724250,0.8801,3627.0,3626.9,0.27575]
[1736012724654,0.4419,3627.0,3626.9,0.27575]
[1736012724855,7.54594839,3627.4,3627.3,0.27572]
[1736012725051,7.96374839,3627.4,3627.3,0.27572]
[1736012725252,4.75594839,3627.4,3627.3,0.27572]
[1736012725657,5.19844839,3627.4,3627.3,0.27572]
[1736012725959,0.8603,3627.4,3627.3,0.27572]
[1736012729667,0.8603,3627.4,3626.6,2.22501914]
[1736012729965,0.8603,3627.4,3627.3,0.27572]
[1736012731964,3.2078,3627.8,3627.7,0.27569]
[1736012733468,0.4485,3627.9,3627.6,3.6277]
[1736012733772,0.4485,3627.9,3627.8,0.27569]
[1736012735863,0.4485,3627.9,3627.2,2.22501914]
[1736012736065,0.4225,3627.8,3627.2,0.4239]
[1736012736266,0.4152,3627.7,3627.6,0.2757]
[1736012736461,0.27571,3627.6,3627.2,0.4239]
[1736012736670,0.27571,3627.6,3627.5,0.27571]
[1736012736870,0.4152,3627.7,3627.2,0.4239]
[1736012737058,0.6909,3627.7,3627.6,0.2757]
[1736012738259,0.4152,3627.7,3627.2,0.4239]
[1736012738464,0.2757,3627.6,3627.5,0.27571]
[1736012739865,0.6909,3627.7,3627.5,0.2757]
[1736012740672,0.6909,3627.7,3627.6,0.2757]
[1736012741266,0.4152,3627.7,3627.6,0.2757]
[1736012742475,3.6563,3627.9,3627.8,0.27569]
[1736012743972,3.93198,3627.9,3627.8,0.27569]
[1736012745376,3.6563,3627.9,3627.8,0.27569]
[1736012746275,3.93198,3627.9,3627.8,0.27569]
[1736012747776,0.4485,3627.9,3627.8,2.50070914]
[1736012747981,0.4258,3628.3,3628.2,0.27566]
[1736012749888,0.70145,3628.3,3628.2,0.27566]
[1736012750088,0.4258,3628.3,3628.2,0.27566]
[1736012752386,0.4258,3628.3,3627.9,0.4488]
[1736012752591,0.4173,3628.2,3627.5,5.43281914]
[1736012752890,3.2078,3628.0,3627.5,0.4305]
[1736012753793,0.27569,3627.8,3627.7,0.27569]
[1736012755082,3.2078,3628.0,3627.5,0.4305]
[1736012755288,0.2757,3627.6,3627.5,0.27571]
[1736012755787,0.27571,3627.5,3627.4,0.27571]
[1736012755989,0.27573,3627.3,3627.2,0.27573]
[1736012756394,4.0745,3627.6,3627.0,0.4123]
[1736012756594,0.27572,3627.4,3627.3,0.27572]
[1736012757394,4.0745,3627.6,3627.0,0.4123]
[1736012757592,0.27572,3627.4,3627.3,0.27572]
[1736012758894,3.48352,3627.4,3627.3,0.27572]
[1736012759091,0.27572,3627.3,3626.9,0.27575]
[1736012759496,3.2078,3627.4,3626.6,3.2078]
[1736012759497,5.43281914,3627.4,3626.6,3.2078]
[1736012759797,0.27576,3626.9,3626.8,0.27576]
[1736012760390,1.084,3627.3,3626.6,3.2078]
[1736012760689,0.27575,3627.0,3626.9,0.27575]
[1736012760890,0.27575,3626.9,3626.8,0.27576]
[1736012761090,1.16345,3626.9,3626.8,0.27576]
[1736012761892,0.8877,3626.9,3626.8,0.27576]
[1736012763494,0.8877,3626.9,3626.3,2.22501914]
[1736012763495,0.27576,3626.8,3626.3,2.22501914]
[1736012763697,0.69856,3626.8,3626.4,0.4116]
[1736012763899,0.69856,3626.8,3626.7,0.27577]
[1736012764501,2.64781914,3626.8,3626.5,0.27578]
[1736012764693,0.27578,3626.6,3626.5,0.27578]
[1736012764891,2.64781914,3626.8,3626.4,0.4116]
[1736012765099,0.4228,3626.8,3626.7,0.27577]
[1736012766495,0.4228,3626.8,3626.4,0.4116]
[1736012766496,0.8877,3626.9,3626.8,0.27576]
[1736012770398,4.33814839,3627.3,3626.6,2.22501914]
[1736012770706,4.33814839,3627.3,3627.2,0.27573]
[1736012771807,4.5038,3627.4,3627.0,0.4088]
[1736012772102,4.5038,3627.4,3627.3,0.27572]
[1736012772298,1.296,3627.4,3627.3,0.27572]
[1736012773411,1.57172,3627.4,3627.3,0.27572]
[1736012773605,1.296,3627.4,3627.3,0.27572]
[1736012773908,1.57172,3627.4,3627.3,0.27572]
[1736012774504,1.296,3627.4,3627.3,0.27572]
[1736012774807,1.57172,3627.4,3627.3,0.27572]
[1736012775306,1.296,3627.4,3627.3,0.27572]
[1736012776011,1.57172,3627.4,3627.3,0.27572]
[1736012781112,1.296,3627.4,3627.3,0.27572]
[1736012781312,4.33814839,3627.7,3627.6,0.2757]
[1736012781510,4.33814839,3627.7,3627.6,2.50071914]
[1736012782317,3.66364839,3627.7,3627.6,2.50071914]
[1736012782616,3.2459827,3628.1,3627.7,0.96491]
[1736012782915,3.2459827,3628.1,3628.0,2.22501914]
[1736012783115,3.2459827,3628.1,3628.0,2.50068914]
[1736012784010,3.6937827,3628.4,3628.3,0.27565]
[1736012784510,3.9694227,3628.4,3628.3,0.27565]
[1736012784710,3.6937827,3628.4,3628.3,0.27565]
[1736012785615,0.4478,3628.4,3628.3,0.27565]
[1736012788617,0.4478,3628.4,3628.3,2.50066914]
[1736012789121,3.2459827,3628.6,3628.5,0.27563]
[1736012789612,3.2078,3628.7,3628.4,0.4379]
[1736012789613,6.4537827,3628.7,3628.6,0.27562]
[1736012789813,3.2459827,3628.7,3628.6,0.27562]
[1736012791119,0.8488,3628.8,3628.4,0.4379]
[1736012791120,0.8488,3628.8,3628.7,0.27562]
[1736012791417,1.12441,3628.8,3628.7,0.27562]
[1736012791607,0.27562,3628.7,3628.6,0.27562]
[1736012792528,6.31980184,3628.8,3627.8,3.89702]
[1736012792814,0.27563,3628.5,3628.4,0.27564]
[1736012793617,3.2078,3628.7,3628.2,0.27565]
[1736012793816,6.4537827,3628.7,3628.3,0.27565]
[1736012794019,0.27564,3628.5,3628.4,0.27564]
[1736012794820,0.27564,3628.5,3627.8,3.2078]
[1736012794821,6.4537827,3628.7,3627.8,3.2078]
[1736012795013,0.4368,3628.4,3627.8,3.2078]
[1736012795318,0.71244,3628.4,3628.3,0.27565]
[1736012795519,0.4368,3628.4,3628.3,0.27565]
[1736012797016,0.71244,3628.4,3628.3,0.27565]
[1736012797220,0.4368,3628.4,3628.3,0.27565]
[1736012806629,6.4537827,3628.7,3628.1,0.4129]
[1736012806925,6.4537827,3628.7,3628.6,0.27562]
[1736012806926,3.2459827,3628.7,3628.6,0.27562]
[1736012807632,0.8488,3628.8,3628.7,0.27562]
[1736012808822,1.12441,3628.8,3628.7,0.27562]
[1736012809429,0.8488,3628.8,3628.1,0.4129]
[1736012809630,0.8488,3628.8,3628.4,0.27563]
[1736012809631,0.27563,3628.5,3628.4,0.27563]
[1736012809932,0.27565,3628.3,3627.9,0.27568]
[1736012810131,0.8468,3628.2,3628.1,0.27566]
[1736012810428,0.8468,3628.2,3627.8,3.89702]
[1736012810429,0.8468,3628.2,3627.8,3.2078]
[1736012810628,2.22501914,3628.1,3627.8,3.2078]
[1736012810831,2.22501914,3628.1,3627.5,4.30508186]
[1736012811130,0.27568,3627.9,3627.8,0.27568]
[1736012816135,0.70358,3627.9,3627.8,0.27568]
[1736012816927,1.11727026,3627.9,3627.8,0.27568]
[1736012817339,0.27569,3627.8,3627.2,7.51288186]
[1736012817533,0.2757,3627.6,3627.5,0.2757]
[1736012818033,0.27572,3627.3,3627.2,4.30508186]
[1736012818235,3.2078,3627.4,3627.1,4.30508186]
[1736012818538,0.4279,3627.3,3627.1,4.30508186]
[1736012818743,0.70363,3627.3,3627.2,0.27573]
[1736012819939,1.11732026,3627.3,3627.2,0.27573]
[1736012820337,0.84159026,3627.3,3627.2,0.27573]
[1736012821429,0.84159026,3627.3,3626.8,3.2078]
[1736012821634,0.84159026,3627.3,3627.2,0.27573]
[1736012821834,0.84159026,3627.3,3626.8,3.2078]
[1736012822137,1.11731026,3627.3,3627.2,0.27573]
[1736012823241,0.4279,3627.3,3627.2,0.27573]
[1736012824439,0.84164664,3627.3,3627.2,0.27573]
[1736012826032,4.08726111,3627.3,3627.2,0.27573]
[1736012826646,4.08726111,3627.3,3626.8,3.2078]
[1736012826840,0.27573,3627.2,3627.1,0.27574]
[1736012827139,4.08726111,3627.3,3626.8,3.2078]
[1736012827343,0.27574,3627.2,3627.1,0.27574]
[1736012829845,3.67351447,3627.3,3626.7,2.22501914]
[1736012830043,3.67351447,3627.3,3627.0,2.22501914]
[1736012830240,3.67351447,3627.3,3627.2,0.27573]
[1736012831248,0.4279,3627.3,3627.2,0.27573]
[1736012833052,3.24561447,3627.4,3627.3,0.27572]
[1736012834053,4.10211447,3627.5,3627.1,0.4138]
[1736012834253,4.10211447,3627.5,3627.4,0.27572]
[1736012835544,0.8565,3627.5,3627.4,0.27572]
[1736012838350,3.24561447,3627.6,3627.4,0.27572]
[1736012838551,3.24561447,3627.6,3627.5,0.27571]
[1736012839054,3.24561447,3627.6,3627.5,3.48351]
[1736012839453,3.24561447,3627.8,3627.7,0.27569]
[1736012839651,3.24561447,3627.8,3627.7,2.50070914]
[1736012841056,4.09631447,3628.1,3628.0,0.27567]
[1736012841957,4.50995081,3628.1,3628.0,0.27567]
[1736012843357,1.26433634,3628.1,3628.0,0.27567]
[1736012843955,1.53999634,3628.1,3628.0,0.27567]
[1736012844459,0.27569,3627.9,3627.8,0.27568]
[1736012845453,0.8507,3628.1,3627.5,3.2078]
[1736012845857,0.27569,3627.8,3627.7,0.27569]
[1736012846757,0.68931634,3627.9,3627.8,0.27569]
[1736012847151,0.41363634,3627.9,3627.8,0.27569]
[1736012847658,0.41363634,3627.9,3627.8,0.71299]
[1736012849359,3.65947555,3628.0,3627.9,0.27568]
[1736012850854,3.65947555,3628.0,3627.9,3.48348]
[1736012851059,0.4383,3628.1,3628.0,0.27567]
[1736012852356,0.85192279,3628.1,3628.0,0.27567]
[1736012852754,0.41362279,3628.1,3628.0,0.27567]
[1736012852952,0.41362279,3628.1,3628.0,2.50068914]
[1736012853663,3.24583921,3628.2,3628.1,0.27566]
[1736012855065,3.659462,3628.3,3628.2,0.27566]
[1736012859567,3.24583921,3628.3,3628.2,0.27566]
[1736012860364,3.67723921,3628.4,3628.3,0.27565]
[1736012861564,0.84502969,3628.4,3628.3,0.27565]
[1736012862873,0.4314,3628.4,3628.3,0.27565]
[1736012863062,0.8432,3628.4,3628.3,0.27565]
[1736012864367,1.25682969,3628.4,3628.3,0.27565]
[1736012870273,1.25682969,3628.4,3628.3,1.27875693]
[1736012872273,1.53246969,3628.4,3628.3,1.27875693]
[1736012872772,1.25682969,3628.4,3628.3,1.27875693]
[1736012873563,1.53246969,3628.4,3628.3,1.27875693]
[1736012874770,1.25682969,3628.4,3628.3,1.27875693]
[1736012877373,0.41362969,3628.4,3628.3,1.27875693]
[1736012878670,3.24817934,3628.6,3628.4,0.27564]
[1736012878870,3.24817934,3628.6,3628.5,1.27873693]
[1736012880175,3.24817934,3628.6,3628.5,5.59363175]
[1736012881476,3.24817934,3628.6,3628.5,1.27873693]
[1736012882773,4.25128627,3628.6,3628.4,4.31489482]
[1736012882974,0.27563,3628.5,3628.4,3.64059482]
[1736012883477,0.27563,3628.5,3628.4,3.91623482]
[1736012884480,5.01239889,3628.5,3628.4,0.27564]
[1736012885480,4.73676889,3628.5,3628.2,1.00310693]
[1736012885683,0.4371,3628.4,3628.2,1.00310693]
[1736012885984,0.27566,3628.1,3627.7,6.49248984]
[1736012886176,0.4316,3628.0,3627.9,0.27568]
[1736012887283,0.84522969,3628.0,3627.9,1.27878693]
[1736012888280,0.84522969,3628.0,3627.9,0.27568]
[1736012888882,0.84522969,3628.0,3627.5,6.49248984]
[1736012889177,0.4354,3627.9,3627.5,6.49248984]
[1736012889382,0.2757,3627.7,3627.6,0.2757]
[1736012890181,0.27569,3627.8,3627.6,0.2757]
[1736012890388,0.4383,3627.7,3627.6,0.2757]
[1736012892187,0.85192969,3627.7,3627.6,0.2757]
[1736012896387,0.41362969,3627.7,3627.6,0.2757]
[1736012896789,9.69e-06,3627.7,3627.6,5.2757]
[1736012898080,2.16642383,3627.9,3627.6,9.39768264]
[1736012898286,2.16642383,3627.9,3627.8,5.7065847]
[1736012899790,2.16642383,3627.9,3627.8,16.58370307]
[1736012901185,3.24963575,3628.1,3627.8,16.58370307]
[1736012901386,3.24963575,3628.1,3628.0,0.27567]
[1736012904488,0.4062,3628.5,3627.8,5.7065847]
[1736012904688,0.4062,3628.5,3628.3,0.27565]
[1736012905396,0.4062,3628.5,3627.8,5.4308947]
[1736012905582,0.27565,3628.3,3628.2,0.27565]
[1736012905983,0.4062,3628.5,3627.8,5.4308947]
[1736012906186,3.48347,3628.1,3627.9,0.27568]
[1736012906387,0.4135,3628.0,3627.9,0.27568]
[1736012916301,0.4135,3628.0,3627.9,1.27889995]
[1736012917302,4.07663364,3628.0,3627.9,1.27889995]
[1736012924010,3.66313364,3628.0,3627.9,1.27889995]
[1736012924506,3.66313364,3628.0,3627.9,1.70709995]
[1736012925612,5.3959221,3628.7,3628.2,0.27566]
[1736012925613,3.66313364,3628.3,3628.2,0.27566]
[1736012925803,1.94144806,3628.3,3628.2,5.4898999]
[1736012926005,0.35983806,3628.3,3628.2,9.48667995]
[1736012926310,8.06e-06,3628.3,3628.2,9.48667995]
[1736012926615,4.3231392,3628.7,3628.2,9.48667995]
[1736012926616,4.3231392,3628.7,3628.6,0.27562]
[1736012926806,4.3231392,3628.7,3628.6,5.4898599]
[1736012927110,0.4414,3629.3,3629.2,0.27558]
[1736012927305,0.4414,3629.3,3629.2,1.27879995]
[1736012928312,0.4414,3629.3,3629.2,0.27558]
[1736012948322,0.4414,3629.3,3629.2,3.48338]
[1736012950227,4.3231392,3630.5,3630.4,0.27549]
[1736012950431,4.3231392,3630.5,3630.4,1.27698868]
[1736012952223,0.8315,3630.7,3630.6,0.27547]
[1736012957327,3.2078,3631.6,3631.5,0.2754]
[1736012958120,3.2078,3631.6,3631.2,2.21919751]
[1736012958319,3.2078,3631.6,3631.4,0.27541]
[1736012958528,3.2078,3631.6,3631.5,0.2754]
[1736012959531,3.2078,3631.6,3631.5,2.49459751]
[1736012959730,0.8533,3631.7,3631.5,2.21919751]
[1736012959931,0.8533,3631.7,3631.6,0.2754]
[1736012961426,0.8533,3631.7,3631.3,2.21919751]
[1736012962127,0.8533,3631.7,3631.6,0.2754]
[1736012963934,0.8533,3631.7,3631.6,2.49459751]
[1736012972556,0.8533,3631.7,3631.6,0.2754]
[1736012972756,0.8533,3631.7,3631.6,2.49459751]
[1736012978641,0.8533,3631.7,3631.6,0.2754]
[1736012978845,0.8533,3631.7,3631.6,2.49459751]
[1736012982645,0.8533,3631.7,3630.7,0.68865]
[1736012982646,0.27542,3631.4,3630.7,0.68865]
[1736012982840,3.6539,3631.3,3630.6,2.21919751]
[1736012983245,0.27545,3631.0,3630.7,0.27546]
[1736012983550,0.4491,3630.9,3630.7,0.27546]
[1736012983745,0.4491,3630.9,3630.2,6.47229102]
[1736012984047,0.27549,3630.4,3630.1,0.27551]
[1736012984245,0.4319,3630.3,3630.0,2.21919751]
[1736012984448,0.7074,3630.3,3630.1,0.27551]
[1736012984645,0.4319,3630.3,3630.0,2.21919751]
[1736012984846,0.27551,3630.2,3630.0,2.49470751]
[1736012985045,0.69901,3630.1,3630.0,2.21919751]
[1736012985244,0.27552,3630.0,3629.7,2.49473751]
[1736012985444,0.4235,3630.1,3629.9,0.27552]
[1736012985445,0.69901,3630.1,3629.9,0.27552]
[1736012985745,0.27552,3630.0,3629.7,2.49472751]
[1736012985947,0.4332,3629.9,3629.8,0.27553]
[1736012995355,0.4332,3629.9,3629.2,3.2078]
[1736012995649,0.4332,3629.9,3629.8,0.27553]
[1736012996849,0.27555,3629.7,3629.4,0.27556]
[1736012997153,0.27556,3629.5,3629.2,5.42699751]
[1736012997451,0.4056,3629.4,3629.3,0.27557]
[1736013001855,0.4056,3629.4,3629.3,2.49476751]
[1736013003953,0.4056,3629.4,3629.0,2.21919751]
[1736013004153,0.68117,3629.4,3629.0,2.21919751]
[1736013004356,0.4056,3629.4,3629.0,2.21919751]
[1736013004555,3.6426,3629.6,3629.5,0.27556]
[1736013004556,0.4348,3629.6,3629.5,0.27556]
[1736013004757,3.23313343,3630.3,3629.5,0.27556]
[1736013004954,3.23313343,3630.3,3630.2,2.49469751]
[1736013005755,4.4649,3630.5,3630.4,0.27549]
[1736013005756,1.2571,3630.5,3630.4,0.27549]